bitfinex/quotes_ETHUSD_20240924
["timestamp","ask_amount","ask_price","bid_price","bid_amount"]
[1727180281518,0.8674,2644.0,2643.9,42.662129]
[1727180281675,0.8674,2644.0,2643.9,38.635841]
[1727180282028,0.8674,2644.0,2643.9,10.029125]
[1727180283227,0.8674,2644.0,2643.9,6.029125]
[1727180283531,0.8674,2644.0,2643.8,22.857992]
[1727180284432,0.8674,2644.0,2643.8,22.476405]
[1727180284633,0.8674,2644.0,2643.9,11.205613]
[1727180284926,0.8674,2644.0,2643.8,15.511888]
[1727180286128,0.8674,2644.0,2643.8,16.95971305]
[1727180286426,0.8674,2644.0,2643.9,24.762959]
[1727180287328,0.8674,2644.0,2643.9,27.76227841]
[1727180287626,0.038,2644.0,2643.9,27.76227841]
[1727180287804,0.038,2644.0,2643.9,31.76227841]
[1727180291466,0.038,2644.0,2643.9,32.13590586]
[1727180292415,0.038,2644.0,2643.9,31.76227841]
[1727180292855,0.038,2644.0,2643.9,35.13598012]
[1727180293063,0.038,2644.0,2643.9,35.93898012]
[1727180293227,0.038,2644.0,2643.9,36.53689288]
[1727180293543,0.038,2644.0,2643.9,37.28441993]
[1727180295343,0.038,2644.0,2643.9,37.9553926]
[1727180295550,0.038,2644.0,2643.9,38.96205356]
[1727180295856,0.038,2644.0,2643.9,37.9553926]
[1727180296057,0.038,2644.0,2643.9,37.28441993]
[1727180296267,0.038,2644.0,2643.9,37.01310346]
[1727180296582,0.038,2644.0,2643.9,38.73312669]
[1727180296876,0.038,2644.0,2643.9,37.76093965]
[1727180297037,0.038,2644.0,2643.9,38.73365086]
[1727180297440,0.038,2644.0,2643.9,39.40522353]
[1727180297772,0.038,2644.0,2643.9,38.80677226]
[1727180297945,0.038,2644.0,2643.9,38.28333804]
[1727180298147,0.038,2644.0,2643.9,39.03166543]
[1727180298459,0.038,2644.0,2643.9,39.03169451]
[1727180298666,0.038,2644.0,2643.9,38.86009276]
[1727180301774,0.038,2644.0,2643.9,28.86176371]
[1727180302755,0.038,2644.0,2643.9,33.36176371]
[1727180302958,0.038,2644.0,2643.9,11.771466]
[1727180302959,0.8674,2644.0,2643.9,11.771466]
[1727180303161,0.8674,2644.0,2643.9,7.523402]
[1727180303679,0.8674,2644.0,2643.9,11.305692]
[1727180303884,0.8674,2644.0,2643.9,4.78229]
[1727180304085,0.8674,2644.0,2643.9,15.319498]
[1727180304290,0.8674,2644.0,2643.9,12.997648]
[1727180304606,0.8674,2644.0,2643.9,8.741264]
[1727180304763,1.50568619,2644.0,2643.9,8.741264]
[1727180305168,0.8674,2644.0,2643.9,8.741264]
[1727180305752,0.8674,2644.0,2643.9,6.573832]
[1727180305948,1.50552646,2644.0,2643.9,6.573832]
[1727180306390,2.6096077,2644.0,2643.9,1.0]
[1727180306767,2.6096077,2644.0,2643.9,1.5]
[1727180306980,4.35575187,2644.0,2643.9,1.5]
[1727180307294,8.13789187,2644.0,2643.9,1.5]
[1727180307654,8.5311431,2644.0,2643.9,1.5]
[1727180307993,10.20096188,2644.0,2643.9,1.5]
[1727180308368,10.20570579,2644.0,2643.9,1.5]
[1727180308766,10.60350774,2644.0,2643.9,1.5]
[1727180309105,10.60003509,2644.0,2643.9,1.5]
[1727180309275,10.20436784,2644.0,2643.9,1.5]
[1727180309986,8.6237695,2644.0,2643.9,1.5]
[1727180310302,10.20390204,2644.0,2643.9,1.5]
[1727180310595,11.6237695,2644.0,2643.9,1.5]
[1727180310798,11.6237695,2644.0,2643.9,2.0]
[1727180310799,15.58845744,2644.0,2643.9,2.0]
[1727180310998,16.35541427,2644.0,2643.9,2.0]
[1727180311299,14.76224503,2644.0,2643.9,2.0]
[1727180311709,11.6237695,2644.0,2643.9,2.0]
[1727180312418,13.59725865,2644.0,2643.9,2.0]
[1727180312709,14.76224503,2644.0,2643.9,2.0]
[1727180313197,11.6237695,2644.0,2643.9,2.0]
[1727180313396,3.0,2643.9,2643.0,0.038]
[1727180313703,0.7507,2643.2,2643.0,0.038]
[1727180313999,4.53413,2643.1,2643.0,0.038]
[1727180314160,4.53413,2643.1,2643.0,5.951912]
[1727180314609,0.7507,2643.1,2643.0,5.951912]
[1727180314813,0.7507,2643.1,2643.0,0.038]
[1727180315406,0.7507,2643.1,2643.0,16.938498]
[1727180315607,0.7507,2643.1,2643.0,17.245997]
[1727180317095,0.7507,2643.1,2643.0,14.16426]
[1727180318112,0.7507,2643.1,2643.0,13.954261]
[1727180318269,0.7507,2643.1,2643.0,6.929365]
[1727180318469,0.7507,2643.1,2643.0,6.171365]
[1727180324090,0.7507,2643.1,2643.0,5.651671]
[1727180324293,0.7507,2643.1,2643.0,9.435241]
[1727180325884,0.7507,2643.1,2643.0,5.651671]
[1727180326409,0.7507,2643.1,2643.0,11.984781]
[1727180328518,0.7507,2643.1,2643.0,15.768351]
[1727180330201,0.7568,2643.4,2643.0,15.768351]
[1727180330369,0.7568,2643.4,2643.0,3.82157]
[1727180330709,1.210767,2643.4,2643.0,3.82157]
[1727180331719,1.210767,2643.4,2643.1,3.78341]
[1727180333609,1.210767,2643.4,2643.0,0.038]
[1727180333813,0.09459046,2643.3,2643.0,0.038]
[1727180334014,4.6344005,2643.4,2643.0,0.038]
[1727180335414,4.53981,2643.4,2643.0,0.038]
[1727180335772,4.63440009,2643.4,2643.0,0.038]
[1727180335974,0.46344001,2643.3,2643.0,0.038]
[1727180337518,0.46344001,2643.3,2643.0,3.82154]
[1727180337811,4.63440009,2643.4,2643.0,3.82154]
[1727180338776,4.63440009,2643.4,2643.0,0.038]
[1727180338987,0.0945913,2643.3,2643.0,0.038]
[1727180340515,3.8777813,2643.3,2643.0,0.038]
[1727180340879,3.7833,2643.2,2643.0,0.038]
[1727180341116,4.94991913,2643.1,2643.0,0.038]
[1727180341336,5.04451661,2643.1,2643.0,0.038]
[1727180341608,1.26108661,2643.1,2643.0,0.038]
[1727180342383,1.26108661,2643.1,2643.0,4.152122]
[1727180342609,1.16648913,2643.1,2643.0,0.038]
[1727180342779,1.26108861,2643.1,2643.0,0.038]
[1727180343378,1.26108861,2643.1,2643.0,5.691251]
[1727180344307,1.16648913,2643.1,2643.0,5.691251]
[1727180344477,0.7787,2643.1,2643.0,5.691251]
[1727180344683,4.56186,2643.3,2643.0,5.691251]
[1727180344928,4.56186,2643.3,2643.0,0.038]
[1727180345420,5.3509899,2643.3,2643.0,0.038]
[1727180345606,0.54455821,2643.2,2643.0,0.038]
[1727180345807,0.54455821,2643.2,2643.1,5.457985]
[1727180346538,1.17700472,2643.2,2643.1,5.457985]
[1727180346743,1.5678299,2643.3,2643.1,5.457985]
[1727180346918,0.7891299,2643.4,2643.0,7.60501]
[1727180347257,1.58119822,2643.4,2643.0,0.038]
[1727180347539,6.24797721,2643.4,2643.0,3.82157]
[1727180347702,0.63247929,2643.3,2643.0,3.82157]
[1727180348330,0.7891299,2643.3,2643.0,3.82157]
[1727180348684,0.63247929,2643.3,2643.2,3.78329]
[1727180348802,0.7891299,2643.4,2643.2,31.164816]
[1727180349006,2.37182275,2643.4,2643.2,3.78329]
[1727180349237,0.63307922,2643.3,2643.2,3.78329]
[1727180349440,0.7891299,2643.4,2643.3,3.78314]
[1727180350007,2.76693998,2643.5,2643.4,3.783]
[1727180350008,0.7891299,2643.5,2643.4,3.783]
[1727180350208,0.6333107,2643.5,2643.4,3.783]
[1727180350445,1.42445954,2643.6,2643.5,4.60096]
[1727180350621,2.37479337,2643.6,2643.4,3.783]
[1727180350816,0.63354834,2643.5,2643.4,3.783]
[1727180351003,1.42442927,2643.6,2643.4,3.783]
[1727180351443,0.63354834,2643.5,2643.4,3.783]
[1727180351639,1.42442927,2643.6,2643.4,3.783]
[1727180351849,2.13436024,2643.7,2643.4,3.783]
[1727180351850,2.37508689,2643.5,2643.4,3.783]
[1727180352205,1.42442927,2643.5,2643.4,3.783]
[1727180352429,2.37508689,2643.5,2643.4,3.783]
[1727180352629,2.76790081,2643.5,2643.3,3.78303]
[1727180352828,2.37558092,2643.4,2643.3,3.78303]
[1727180353255,2.37558092,2643.4,2643.3,18.18994]
[1727180353550,2.37558092,2643.4,2643.3,17.715846]
[1727180353759,1.58420596,2643.4,2643.3,17.715846]
[1727180354121,2.37581261,2643.4,2643.3,17.715846]
[1727180355440,2.37852318,2643.4,2643.3,17.715846]
[1727180356155,2.77061138,2643.4,2643.3,11.22393]
[1727180356364,2.77061138,2643.4,2643.2,17.301639]
[1727180356571,2.37864969,2643.3,2643.2,17.301639]
[1727180356724,1.58691653,2643.3,2643.2,8.651709]
[1727180356923,2.77061138,2643.3,2643.2,8.651709]
[1727180357230,2.77061138,2643.3,2643.2,6.092709]
[1727180359270,1.58691653,2643.3,2643.2,6.092709]
[1727180360250,2.37813779,2643.3,2643.2,6.092709]
[1727180360650,1.58691653,2643.3,2643.2,6.092709]
[1727180360856,2.77061138,2643.3,2643.2,6.092709]
[1727180362228,2.37811153,2643.3,2643.2,6.092709]
[1727180362733,2.37809343,2643.3,2643.2,6.092709]
[1727180363541,1.58691653,2643.3,2643.2,6.092709]
[1727180363961,2.77061138,2643.3,2643.2,6.092709]
[1727180364867,2.37807364,2643.3,2643.2,6.092709]
[1727180365070,2.77061138,2643.3,2643.2,4.389739]
[1727180365271,9.2037741,2643.3,2643.2,0.5]
[1727180365563,9.88788813,2643.3,2643.2,0.5]
[1727180365959,10.28887474,2643.3,2643.2,0.5]
[1727180368545,3.74778833,2643.3,2643.2,0.5]
[1727180368770,4.43773043,2643.3,2643.2,0.5]
[1727180369480,2.8554975,2643.3,2643.2,1.0]
[1727180369999,4.43722679,2643.3,2643.2,1.0]
[1727180370342,3.16864582,2643.3,2643.2,1.0]
[1727180370765,8.04948555,2643.3,2643.2,1.0]
[1727180371076,9.71370663,2643.3,2643.2,1.0]
[1727180372588,10.51040663,2643.3,2643.2,1.0]
[1727180373585,10.51040663,2643.3,2643.2,1.5]
[1727180374898,10.50939975,2643.3,2643.2,1.5]
[1727180375292,8.53175961,2643.3,2643.2,1.5]
[1727180375963,10.11891082,2643.3,2643.2,1.5]
[1727180376165,8.53175961,2643.3,2643.2,1.5]
[1727180377764,8.53175961,2643.3,2643.2,2.0]
[1727180378668,4.74861961,2643.3,2643.2,2.0]
[1727180378881,6.72575935,2643.3,2643.2,2.0]
[1727180379702,6.72697698,2643.3,2643.2,2.0]
[1727180380044,6.82156896,2643.3,2643.2,2.0]
[1727180380185,6.72697698,2643.3,2643.2,2.0]
[1727180380390,4.83257725,2643.3,2643.2,2.0]
[1727180380715,2.77323279,2643.3,2643.2,2.0]
[1727180381075,3.16866832,2643.3,2643.2,2.0]
[1727180381813,4.43824237,2643.3,2643.2,2.0]
[1727180382011,3.16866832,2643.3,2643.2,2.0]
[1727180382307,3.16866832,2643.3,2643.2,2.5]
[1727180382811,2.85645198,2643.3,2643.2,6.28329]
[1727180382972,2.77321258,2643.3,2643.2,6.28329]
[1727180383906,2.77321258,2643.3,2643.2,8.56522474]
[1727180384105,2.85143253,2643.4,2643.3,3.78314]
[1727180384106,0.79096419,2643.4,2643.3,3.78314]
[1727180384324,0.79096419,2643.5,2643.4,3.783]
[1727180384645,0.79096419,2643.7,2643.5,3.78286]
[1727180384932,0.79096419,2643.9,2643.8,4.61483]
[1727180385117,0.038,2644.0,2643.9,36.183663]
[1727180385429,0.038,2644.0,2643.9,37.62235157]
[1727180385817,0.038,2644.0,2643.9,40.62235157]
[1727180386131,0.038,2644.0,2643.9,44.62235157]
[1727180386332,0.038,2644.0,2643.9,47.75901512]
[1727180389694,0.038,2644.0,2643.9,47.16006655]
[1727180390426,0.038,2644.0,2643.9,43.16006655]
[1727180392912,0.038,2644.0,2643.9,47.16006655]
[1727180393117,0.038,2644.0,2643.9,43.16006655]
[1727180396005,0.038,2644.0,2643.9,47.16006655]
[1727180398507,0.038,2644.0,2643.9,43.16006655]
[1727180400244,0.038,2644.0,2643.9,40.023403]
[1727180400407,0.038,2644.0,2643.9,17.844301]
[1727180400608,0.038,2644.0,2643.9,17.105476]
[1727180400808,0.038,2644.0,2643.9,10.137179]
[1727180401028,0.038,2644.0,2643.9,2.993907]
[1727180401307,0.038,2644.0,2643.8,7.924896]
[1727180401820,0.038,2644.0,2643.8,11.707316]
[1727180402344,0.038,2644.0,2643.9,11.350947]
[1727180402512,0.038,2644.0,2643.9,15.095947]
[1727180403028,0.038,2644.0,2643.9,10.667405]
[1727180403544,0.038,2644.0,2643.9,10.301405]
[1727180403741,0.038,2644.0,2643.9,6.519115]
[1727180403945,0.038,2644.0,2643.7,3.78251]
[1727180404152,0.038,2644.0,2643.8,10.845796]
[1727180405315,0.8288,2643.9,2643.8,9.465238]
[1727180405638,0.8288,2643.9,2643.8,10.578496]
[1727180405831,0.8288,2643.9,2643.7,10.668734]
[1727180406120,0.8288,2643.9,2643.7,14.451294]
[1727180406312,0.8288,2643.9,2643.8,10.578496]
[1727180407320,0.038,2644.0,2643.8,10.578496]
[1727180408265,0.038,2644.0,2643.9,3.78229]
[1727180408564,0.038,2644.0,2643.9,13.177454]
[1727180409639,0.038,2644.0,2643.9,12.8509]
[1727180409842,0.038,2644.0,2643.9,8.647454]
[1727180410027,0.8668,2644.0,2643.9,3.371879]
[1727180410361,0.8668,2644.0,2643.8,8.719177]
[1727180411311,0.8668,2644.0,2643.8,12.501607]
[1727180411516,5.113943,2644.0,2643.5,3.78279]
[1727180411748,0.0945639,2643.9,2643.6,3.78264]
[1727180411949,1.42623851,2644.0,2643.6,3.78264]
[1727180414431,0.038,2644.0,2643.7,3.78254]
[1727180414627,0.038,2644.0,2643.6,3.78264]
[1727180414628,0.038,2644.0,2643.8,3.78241]
[1727180414952,0.038,2644.0,2643.7,3.78257]
[1727180415630,0.038,2644.0,2643.8,3.78239]
[1727180415826,0.038,2644.0,2643.9,8.822378]
[1727180417120,0.038,2644.0,2643.9,5.459138]
[1727180417319,0.038,2644.0,2643.9,2.502346]
[1727180420379,0.038,2644.0,2643.9,5.025634]
[1727180422043,0.038,2644.0,2643.9,8.807924]
[1727180422245,0.038,2644.0,2643.9,10.223307]
[1727180422453,0.038,2644.0,2643.9,9.768503]
[1727180424175,0.038,2644.0,2643.9,5.986213]
[1727180424845,0.038,2644.0,2643.9,4.964963]
[1727180428859,0.038,2644.0,2643.9,8.747253]
[1727180429051,0.038,2644.0,2643.9,10.89316]
[1727180429450,0.038,2644.0,2643.9,12.90832131]
[1727180430372,0.038,2644.0,2643.9,16.90832131]
[1727180432271,0.038,2644.0,2643.9,16.95740932]
[1727180432480,0.038,2644.0,2643.9,17.45740932]
[1727180432941,0.038,2644.0,2643.9,13.45740932]
[1727180433661,0.038,2644.0,2643.9,17.05636663]
[1727180433979,0.038,2644.0,2643.9,18.28182159]
[1727180434144,0.038,2644.0,2643.9,19.97890404]
[1727180434346,0.038,2644.0,2643.9,18.96065457]
[1727180434561,0.038,2644.0,2643.9,19.97883067]
[1727180435283,0.038,2644.0,2643.9,19.978425]
[1727180435436,0.038,2644.0,2643.9,19.97786544]
[1727180435637,0.038,2644.0,2643.9,18.96023913]
[1727180435879,0.038,2644.0,2643.9,19.97793272]
[1727180436180,0.038,2644.0,2643.9,23.97793272]
[1727180436356,0.038,2644.0,2643.9,27.11406498]
[1727180436558,0.038,2644.0,2643.9,27.61406498]
[1727180437092,2.34489039,2645.0,2643.9,27.61406498]
[1727180437093,1.18633465,2645.1,2644.7,0.7876]
[1727180437258,0.038245,2645.3,2645.0,3.13624849]
[1727180437454,0.63081754,2645.2,2645.1,3.78044]
[1727180437845,0.63081754,2645.2,2645.1,3.8273556]
[1727180438588,0.038245,2645.3,2645.2,3.78043]
[1727180438892,0.038245,2645.3,2645.2,15.73117357]
[1727180439187,0.038245,2645.3,2645.2,21.21096827]
[1727180441690,0.038245,2645.3,2645.2,18.07471978]
[1727180441893,0.038245,2645.3,2645.2,15.73117357]
[1727180442044,0.038245,2645.3,2645.2,21.86952357]
[1727180442942,0.801345,2645.3,2645.2,0.04675357]
[1727180443148,0.038245,2645.3,2645.2,3.78043]
[1727180443591,0.038245,2645.3,2645.2,3.82481804]
[1727180444799,0.038245,2645.3,2645.2,0.04438804]
[1727180445597,0.89585238,2645.3,2645.1,4.0]
[1727180445900,0.801345,2645.3,2645.2,0.04443501]
[1727180446991,0.801345,2645.3,2645.0,3.7807]
[1727180447191,0.801345,2645.3,2645.1,0.04443501]
[1727180452459,0.801345,2645.3,2645.1,3.82499501]
[1727180454103,0.801345,2645.3,2645.1,0.04443501]
[1727180454286,0.763345,2645.3,2645.1,0.04443501]
[1727180454458,1.5956965,2645.3,2645.0,4.0]
[1727180454659,5.3760665,2645.3,2645.2,0.04456024]
[1727180454889,4.53264,2645.2,2645.0,4.0]
[1727180455092,5.06929365,2645.1,2645.0,4.0]
[1727180455815,5.06929365,2645.1,2645.0,4.04456024]
[1727180456027,1.28872365,2645.1,2645.0,0.04456024]
[1727180456323,0.7522,2645.1,2644.9,3.78078]
[1727180456503,0.7522,2645.1,2645.0,0.04456024]
[1727180456688,0.752445,2645.3,2645.0,0.04456024]
[1727180457089,0.752445,2645.3,2645.0,3.82520024]
[1727180457321,0.000245,2645.3,2645.1,3.7805]
[1727180457497,0.000245,2645.3,2645.2,3.78043]
[1727180458027,0.000245,2645.3,2645.2,3.82499024]
[1727180459197,0.000245,2645.3,2645.2,0.04456024]
[1727180459719,0.000245,2645.3,2645.2,3.82499024]
[1727180460516,0.000245,2645.3,2645.2,0.04456024]
[1727180460724,0.000245,2645.3,2645.2,3.82499024]
[1727180461227,0.000245,2645.3,2645.2,13.25126926]
[1727180461384,0.000245,2645.3,2645.2,14.07286926]
[1727180463009,0.000245,2645.3,2645.2,18.07286926]
[1727180463546,0.000245,2645.3,2645.2,17.25126926]
[1727180463711,0.000245,2645.3,2645.2,4.04456024]
[1727180463712,0.818145,2645.3,2645.2,4.04456024]
[1727180464059,4.598425,2645.3,2645.2,0.04456024]
[1727180464258,6.55142197,2645.3,2645.2,0.04456024]
[1727180464443,0.8179,2645.2,2644.6,3.78123]
[1727180464619,0.8179,2645.2,2645.0,3.78071]
[1727180464817,0.000245,2645.3,2645.2,3.78043]
[1727180465132,0.000245,2645.3,2645.2,17.994689]
[1727180465369,0.000245,2645.3,2645.2,7.53913275]
[1727180465864,0.000245,2645.3,2645.2,11.53913275]
[1727180466013,0.000245,2645.3,2645.2,7.75870275]
[1727180467057,0.000245,2645.3,2645.2,11.53913275]
[1727180467341,0.000245,2645.3,2645.2,7.53913275]
[1727180469257,0.000245,2645.3,2645.2,3.75870275]
[1727180469962,0.000245,2645.3,2645.2,7.53913275]
[1727180470164,0.000245,2645.3,2645.2,9.16912013]
[1727180471129,0.000245,2645.3,2645.2,13.12696862]
[1727180471769,0.000245,2645.3,2645.2,17.12696862]
[1727180473536,0.000245,2645.3,2645.2,20.12696862]
[1727180474171,15.97863,2646.5,2645.2,20.12696862]
[1727180474172,1.18314809,2646.4,2645.9,3.8216]
[1727180474354,2.40164852,2646.9,2645.9,3.8216]
[1727180474355,0.8179,2646.8,2646.0,4.09225]
[1727180474662,4.59704,2646.1,2646.0,0.04252525]
[1727180474951,2.94270529,2646.1,2646.0,0.04252525]
[1727180475152,2.94270529,2646.1,2645.4,0.8216]
[1727180475153,3.77932,2646.0,2645.4,0.8216]
[1727180475358,1.58293591,2645.9,2645.4,6.91628849]
[1727180475556,0.8179,2646.1,2645.4,6.91629849]
[1727180475756,0.89804127,2646.0,2645.6,3.77984]
[1727180475969,4.59706,2646.1,2645.4,6.91629849]
[1727180476139,0.89805952,2646.0,2645.4,6.91629849]
[1727180476342,0.8982705,2645.9,2645.5,3.77999]
[1727180476666,0.459706,2646.0,2645.5,3.77999]
[1727180476977,0.89825888,2645.9,2645.5,3.77999]
[1727180477179,0.89825888,2645.8,2645.4,3.78012]
[1727180477378,0.459706,2646.0,2645.5,3.77995]
[1727180477589,1.40416553,2645.9,2645.5,3.77995]
[1727180477754,0.89848893,2645.8,2645.6,3.77981]
[1727180478080,0.8179,2646.1,2645.7,3.77971]
[1727180478298,0.89846208,2646.0,2645.7,3.77971]
[1727180478442,0.8179,2646.1,2645.8,3.77957]
[1727180478443,0.89846208,2645.9,2645.8,3.77957]
[1727180478642,0.89846208,2646.0,2645.8,3.77957]
[1727180479302,0.89846208,2646.0,2645.6,7.55954]
[1727180479643,0.89846208,2646.0,2645.6,3.77973]
[1727180479895,0.89846208,2646.0,2645.7,3.77966]
[1727180480183,0.89846208,2646.0,2645.8,3.7795]
[1727180480547,0.89846208,2646.0,2645.7,3.77966]
[1727180480861,0.89846208,2646.0,2645.8,3.77949]
[1727180481481,0.89846208,2646.0,2645.9,3.77943]
[1727180481791,0.89846208,2646.0,2645.8,7.55897]
[1727180482849,0.89846208,2645.9,2645.8,7.55897]
[1727180483046,0.89846208,2645.9,2645.8,7.843989]
[1727180483347,0.89846208,2645.9,2645.8,3.77948]
[1727180484047,0.79029214,2645.9,2645.8,3.77948]
[1727180484247,0.79029214,2646.0,2645.8,3.77948]
[1727180484479,0.79029214,2646.0,2645.9,3.77932]
[1727180484779,1.18554739,2646.1,2646.0,3.77928]
[1727180484780,0.79029214,2646.1,2646.0,3.77928]
[1727180485093,1.18554739,2646.1,2645.9,3.77943]
[1727180485281,1.69011351,2646.0,2645.9,3.77943]
[1727180485906,1.69011351,2646.0,2645.9,3.81772]
[1727180486111,1.18554739,2646.1,2645.9,3.81772]
[1727180486112,0.79018907,2646.1,2645.9,3.81772]
[1727180486998,1.18554739,2646.2,2645.9,3.81772]
[1727180486999,1.68994446,2646.0,2645.9,3.81772]
[1727180487202,0.79018907,2646.1,2645.9,3.81772]
[1727180487415,0.8996553,2646.0,2645.9,3.81772]
[1727180487744,1.68984437,2646.0,2645.9,3.81772]
[1727180487907,1.68984437,2646.0,2645.9,0.03829]
[1727180488110,1.68984437,2646.0,2645.9,3.81772]
[1727180488445,0.79018907,2646.1,2645.9,0.03829]
[1727180488603,0.8995575,2646.0,2645.9,0.03829]
[1727180489233,2.50764657,2646.0,2645.9,0.03829]
[1727180489438,2.50764657,2646.0,2645.7,3.77964]
[1727180489439,2.90300489,2646.0,2645.7,3.77964]
[1727180489639,1.68930177,2645.9,2645.7,3.77964]
[1727180489944,0.78974427,2645.9,2645.7,3.77964]
[1727180490254,1.60764427,2646.0,2645.7,3.77964]
[1727180490481,1.68912615,2645.9,2645.7,3.77964]
[1727180490745,1.60764427,2646.0,2645.7,3.77964]
[1727180491047,1.68912778,2645.9,2645.7,3.77964]
[1727180491247,1.60764427,2646.0,2645.7,3.77964]
[1727180491553,0.78974427,2646.0,2645.8,28.74729492]
[1727180491719,0.78974427,2646.1,2645.8,3.77957]
[1727180492119,0.78974427,2646.1,2645.9,3.77942]
[1727180492320,5.74281739,2646.3,2646.0,3.77926]
[1727180492321,0.78974427,2646.2,2646.0,3.77926]
[1727180492539,0.78974427,2646.2,2646.0,3.77928]
[1727180493069,0.78974427,2646.2,2645.9,3.77942]
[1727180493811,0.78974427,2646.2,2646.0,3.7792]
[1727180494212,0.78974427,2646.3,2646.0,3.7792]
[1727180494538,1.68902719,2646.2,2646.0,3.7792]
[1727180494858,0.78974427,2646.2,2646.0,3.7792]
[1727180495208,0.78974427,2646.2,2645.3,0.7558]
[1727180495209,3.25911796,2646.1,2645.3,0.7558]
[1727180495410,0.78948775,2645.9,2645.6,3.77978]
[1727180496545,0.78948775,2645.9,2645.5,4.0]
[1727180496546,0.78948775,2646.0,2645.8,3.77957]
[1727180496777,0.78948775,2646.1,2645.9,3.77931]
[1727180496948,0.78948775,2646.2,2645.9,3.77931]
[1727180497653,0.78948775,2646.2,2646.0,3.77926]
[1727180498251,0.78948775,2646.3,2646.0,3.77926]
[1727180498661,0.78948775,2646.2,2646.0,3.77926]
[1727180499038,1.68974332,2646.2,2646.0,3.77926]
[1727180499347,0.78948775,2646.2,2646.0,4.27926]
[1727180500320,0.78948775,2646.3,2646.2,3.779]
[1727180500553,0.78948775,2646.4,2646.2,3.779]
[1727180500885,1.18423163,2646.5,2646.3,3.81421545]
[1727180500886,1.97371938,2646.5,2646.3,3.81421545]
[1727180501092,0.78948775,2646.5,2646.3,3.81421545]
[1727180501248,0.90016793,2646.5,2646.4,3.77871]
[1727180501685,0.78974378,2646.6,2646.5,3.77857]
[1727180502196,0.78974378,2646.6,2646.5,3.81381083]
[1727180504013,2.08468159,2646.7,2646.5,4.58063464]
[1727180504156,0.038245,2646.9,2646.8,3.77814]
[1727180504500,0.038245,2646.9,2646.8,3.81322456]
[1727180504706,0.038245,2646.9,2646.8,24.84542009]
[1727180504882,0.038245,2646.9,2646.8,24.76986679]
[1727180506567,0.038245,2646.9,2646.8,28.76986679]
[1727180506995,0.038245,2646.9,2646.8,29.52796679]
[1727180508583,0.038245,2646.9,2646.8,58.43353479]
[1727180509015,0.038245,2646.9,2646.8,51.5191463]
[1727180509185,0.038245,2646.9,2646.8,16.1024453]
[1727180509394,0.038245,2646.9,2646.8,19.8805853]
[1727180509706,0.038245,2646.9,2646.8,10.0558453]
[1727180510030,0.038245,2646.9,2646.8,7.30118356]
[1727180510385,4.583345,2646.9,2646.8,4.03508456]
[1727180510593,4.583345,2646.9,2646.8,0.03508456]
[1727180510921,3.77818,2646.8,2646.3,3.77882]
[1727180511299,3.77818,2646.8,2646.4,0.03303517]
[1727180512534,3.77829,2646.7,2646.4,0.03303517]
[1727180512901,3.77829,2646.7,2646.1,1.5]
[1727180513105,4.54553,2646.6,2646.5,0.03303517]
[1727180513310,4.54553,2646.6,2646.1,1.5]
[1727180513311,3.77864,2646.5,2646.1,1.5]
[1727180513492,4.54553,2646.6,2646.5,0.03332152]
[1727180513688,3.77859,2646.5,2646.1,1.5]
[1727180513894,3.77859,2646.5,2646.2,3.438163]
[1727180515974,3.77859,2646.5,2646.3,0.03332152]
[1727180516374,3.77859,2646.5,2646.1,2.0]
[1727180516578,3.77859,2646.5,2646.4,0.03332152]
[1727180516881,3.77859,2646.5,2646.1,2.0]
[1727180516882,3.77872,2646.4,2646.1,2.0]
[1727180517176,3.779,2646.2,2646.1,2.0]
[1727180517378,4.5461,2646.2,2646.1,2.0]
[1727180519174,0.7671,2646.2,2646.1,2.0]
[1727180520454,4.5461,2646.2,2646.1,2.0]
[1727180523087,5.45759738,2646.2,2646.1,2.0]
[1727180523398,7.1473584,2646.2,2646.1,2.0]
[1727180523612,7.54158627,2646.2,2646.1,2.0]
[1727180524476,6.35735464,2646.2,2646.1,2.0]
[1727180524655,6.35735464,2646.2,2646.1,2.0340663]
[1727180525060,7.14578009,2646.2,2646.1,2.0340663]
[1727180525607,7.54158627,2646.2,2646.1,2.0340663]
[1727180525903,7.54158627,2646.2,2646.1,2.0]
[1727180526983,7.54136275,2646.2,2646.1,2.0]
[1727180529019,7.54136275,2646.2,2646.1,2.03455609]
[1727180529316,6.35713112,2646.2,2646.1,2.03455609]
[1727180530023,7.14547976,2646.2,2646.1,2.03455609]
[1727180530407,6.35713112,2646.2,2646.1,2.03455609]
[1727180530784,7.14541778,2646.2,2646.1,2.03455609]
[1727180531717,7.14573965,2646.2,2646.1,2.03455609]
[1727180533699,6.23424227,2646.2,2646.1,2.03455609]
[1727180534018,5.46714227,2646.2,2646.1,2.03455609]
[1727180534445,4.67914444,2646.2,2646.1,2.03455609]
[1727180534649,5.46742296,2646.2,2646.1,2.03455609]
[1727180534847,4.67914425,2646.2,2646.1,2.03455609]
[1727180535653,5.46743091,2646.2,2646.1,2.03455609]
[1727180535832,3.779,2646.2,2646.1,2.03455609]
[1727180536034,4.67911992,2646.2,2646.1,2.03455609]
[1727180536239,5.467431,2646.2,2646.1,2.03455609]
[1727180536434,5.46744598,2646.2,2646.1,2.03455609]
[1727180536642,3.779,2646.2,2646.1,2.03455609]
[1727180536957,4.67918932,2646.2,2646.1,2.03455609]
[1727180537117,3.779,2646.2,2646.1,2.03455609]
[1727180537319,5.4674506,2646.2,2646.1,2.03455609]
[1727180538009,6.74742309,2646.2,2646.1,2.03455609]
[1727180538244,6.84221974,2646.2,2646.1,2.03455609]
[1727180538411,8.02645137,2646.2,2646.1,2.03455609]
[1727180538625,7.93196806,2646.2,2646.1,2.03455609]
[1727180538840,6.74773643,2646.2,2646.1,2.03455609]
[1727180539035,8.02645196,2646.2,2646.1,2.03455609]